[Event "*** SCC Grand Prix: Titled Tuesday Blitz"]
[Site "Chess.com"]
[Date "2020.07.21"]
[Round "9"]
[White "vladislavkovalev"]
[Black "BilguunSu"]
[Result "1-0"]
[WhiteElo "2908"]
[BlackElo "2677"]
[TimeControl "180+1"]
[EndTime "11:49:28 PDT"]
[Termination "vladislavkovalev won by resignation"]

1. e4 {[%clk 0:03:00.9]} 1... c5 {[%clk 0:02:59.8]} 2. Be2 {[%clk 0:03:00.5]}
2... b6 {[%clk 0:02:52.4]} 3. d3 {[%clk 0:02:59.7]} 3... Bb7 {[%clk 0:02:53]} 4.
f4 {[%clk 0:03:00.3]} 4... g6 {[%clk 0:02:52]} 5. Nf3 {[%clk 0:03:00.4]} 5...
Bg7 {[%clk 0:02:51.9]} 6. O-O {[%clk 0:03:01.1]} 6... d6 {[%clk 0:02:49.8]} 7.
c3 {[%clk 0:03:01.5]} 7... e6 {[%clk 0:02:49.4]} 8. Be3 {[%clk 0:03:01.6]} 8...
Ne7 {[%clk 0:02:49.1]} 9. Nbd2 {[%clk 0:03:01]} 9... O-O {[%clk 0:02:48.6]} 10.
d4 {[%clk 0:03:01.4]} 10... Nd7 {[%clk 0:02:48.2]} 11. Rc1 {[%clk 0:02:58.7]}
11... f5 {[%clk 0:02:47.7]} 12. Qb3 {[%clk 0:02:56.6]} 12... d5 {[%clk 0:02:43]}
13. e5 {[%clk 0:02:54.5]} 13... c4 {[%clk 0:02:41.7]} 14. Qc2 {[%clk 0:02:53.2]}
14... h6 {[%clk 0:02:41]} 15. b3 {[%clk 0:02:47.1]} 15... b5 {[%clk 0:02:40.6]}
16. a4 {[%clk 0:02:47.7]} 16... a6 {[%clk 0:02:41.2]} 17. h3 {[%clk 0:02:39.6]}
17... Nb6 {[%clk 0:02:32.5]} 18. axb5 {[%clk 0:02:29]} 18... axb5 {[%clk
0:02:31.6]} 19. Ra1 {[%clk 0:02:29]} 19... Qc7 {[%clk 0:02:25.5]} 20. g4 {[%clk
0:02:25.5]} 20... cxb3 {[%clk 0:02:03.9]} 21. Nxb3 {[%clk 0:02:23.8]} 21... Nc4
{[%clk 0:02:03.8]} 22. Rxa8 {[%clk 0:02:08.4]} 22... Nxe3 {[%clk 0:01:58.9]} 23.
Rxf8+ {[%clk 0:02:08.3]} 23... Bxf8 {[%clk 0:01:59.6]} 24. Qd2 {[%clk
0:01:59.3]} 24... Nxf1 {[%clk 0:01:57.8]} 25. Kxf1 {[%clk 0:01:59.9]} 25... Qb6
{[%clk 0:01:41.5]} 26. Nc5 {[%clk 0:01:49.9]} 26... Nc8 {[%clk 0:01:35.9]} 27.
Nd7 {[%clk 0:01:50]} 27... Qa5 {[%clk 0:01:25.5]} 28. gxf5 {[%clk 0:01:38.7]}
28... gxf5 {[%clk 0:01:04.9]} 29. Nf6+ {[%clk 0:01:38.3]} 29... Kf7 {[%clk
0:01:04.2]} 30. Nh4 {[%clk 0:01:33.3]} 30... Qa1+ {[%clk 0:01:02.5]} 31. Kg2
{[%clk 0:01:28.5]} 31... Ba3 {[%clk 0:00:40]} 32. Bxb5 {[%clk 0:01:23.9]} 32...
Qb2 {[%clk 0:00:31]} 33. Be8+ {[%clk 0:01:23.5]} 33... Kg7 {[%clk 0:00:29.2]}
34. Nf3 {[%clk 0:01:23.4]} 34... Qxd2+ {[%clk 0:00:26]} 35. Nxd2 {[%clk
0:01:24.3]} 35... Bb2 {[%clk 0:00:26.1]} 36. Bd7 {[%clk 0:01:17.4]} 36... Kf7
{[%clk 0:00:25.8]} 37. Nb3 {[%clk 0:01:13.4]} 37... Nb6 {[%clk 0:00:23.2]} 38.
Bxe6+ {[%clk 0:01:00.9]} 38... Kxe6 {[%clk 0:00:22]} 39. Nc5+ {[%clk 0:01:01.6]}
39... Kf7 {[%clk 0:00:19.5]} 40. Nxb7 {[%clk 0:01:01.8]} 40... Bxc3 {[%clk
0:00:20.3]} 41. Nd6+ {[%clk 0:01:02.4]} 41... Ke6 {[%clk 0:00:20.2]} 42. Nb5
{[%clk 0:01:02.9]} 42... Bb2 {[%clk 0:00:20.4]} 43. Kf3 {[%clk 0:00:44.8]} 43...
Bc1 {[%clk 0:00:19.7]} 44. Nc7+ {[%clk 0:00:43.1]} 44... Kf7 {[%clk 0:00:19.3]}
45. Nfxd5 {[%clk 0:00:42.3]} 45... Nc4 {[%clk 0:00:19.1]} 46. e6+ {[%clk
0:00:41.4]} 46... Kg6 {[%clk 0:00:18.6]} 47. e7 {[%clk 0:00:39.5]} 47... Nd6
{[%clk 0:00:19.5]} 48. e8=Q+ {[%clk 0:00:38]} 48... Nxe8 {[%clk 0:00:19.9]} 49.
Nxe8 {[%clk 0:00:38.9]} 49... Bb2 {[%clk 0:00:18.2]} 50. Ke3 {[%clk 0:00:38.9]}
50... Bc1+ {[%clk 0:00:17.8]} 51. Kd3 {[%clk 0:00:26.3]} 51... Kf7 {[%clk
0:00:18.7]} 52. Nec7 {[%clk 0:00:23.2]} 52... h5 {[%clk 0:00:17.1]} 53. Ne3
{[%clk 0:00:20.3]} 53... Kf6 {[%clk 0:00:15.6]} 54. Ncd5+ {[%clk 0:00:20.3]}
54... Ke6 {[%clk 0:00:15.4]} 55. Nc3 {[%clk 0:00:19.5]} 55... Ba3 {[%clk
0:00:14.7]} 56. Ne2 {[%clk 0:00:19.2]} 56... Bd6 {[%clk 0:00:14]} 57. Nc4 {[%clk
0:00:15.3]} 57... Bc7 {[%clk 0:00:13.6]} 58. Ne5 {[%clk 0:00:15.7]} 58... Kd5
{[%clk 0:00:13.5]} 59. Ng3 {[%clk 0:00:15.3]} 1-0

[Event "*** SCC Grand Prix: Titled Tuesday Blitz"]
[Site "Chess.com"]
[Date "2020.07.21"]
[Round "9"]
[White "Vuk2000"]
[Black "Sam_ChessMood"]
[Result "1/2-1/2"]
[WhiteElo "2633"]
[BlackElo "2794"]
[TimeControl "180+1"]
[EndTime "11:49:30 PDT"]
[Termination "Game drawn by repetition"]

1. d4 {[%clk 0:03:00]} 1... d5 {[%clk 0:02:59.5]} 2. Bf4 {[%clk 0:02:59.5]} 2...
Nf6 {[%clk 0:02:58.6]} 3. e3 {[%clk 0:02:58.6]} 3... c5 {[%clk 0:02:58.7]} 4. c3
{[%clk 0:02:58.5]} 4... Nc6 {[%clk 0:02:58.2]} 5. Nd2 {[%clk 0:02:58.6]} 5...
Bf5 {[%clk 0:02:53.3]} 6. Qb3 {[%clk 0:02:49.3]} 6... Qc8 {[%clk 0:02:44.9]} 7.
Ngf3 {[%clk 0:02:44.3]} 7... e6 {[%clk 0:02:44.2]} 8. Bb5 {[%clk 0:02:40.3]}
8... Be7 {[%clk 0:02:41.6]} 9. Ne5 {[%clk 0:02:40]} 9... O-O {[%clk 0:02:39]}
10. Nxc6 {[%clk 0:02:35.7]} 10... bxc6 {[%clk 0:02:38.6]} 11. Be2 {[%clk
0:02:35.9]} 11... cxd4 {[%clk 0:02:33.6]} 12. cxd4 {[%clk 0:02:32.1]} 12... c5
{[%clk 0:02:33.9]} 13. dxc5 {[%clk 0:02:28.4]} 13... Qxc5 {[%clk 0:02:33.2]} 14.
O-O {[%clk 0:02:24.6]} 14... Qa5 {[%clk 0:02:10.7]} 15. Nf3 {[%clk 0:02:17.8]}
15... Ne4 {[%clk 0:02:04.2]} 16. Rfc1 {[%clk 0:02:04.9]} 16... Nc5 {[%clk
0:01:55.6]} 17. Qb5 {[%clk 0:01:58.5]} 17... Qxb5 {[%clk 0:01:54.6]} 18. Bxb5
{[%clk 0:01:59.4]} 18... Rfc8 {[%clk 0:01:46.8]} 19. Nd4 {[%clk 0:01:57]} 19...
a6 {[%clk 0:01:19.6]} 20. Bc6 {[%clk 0:01:47.9]} 20... Nd3 {[%clk 0:01:05.9]}
21. Nxf5 {[%clk 0:01:45.1]} 21... exf5 {[%clk 0:01:03.8]} 22. Bxa8 {[%clk
0:01:44.3]} 22... Rxc1+ {[%clk 0:00:59.5]} 23. Rxc1 {[%clk 0:01:43.6]} 23...
Nxc1 {[%clk 0:01:00.4]} 24. Bxd5 {[%clk 0:01:41.3]} 24... Ne2+ {[%clk
0:00:59.5]} 25. Kf1 {[%clk 0:01:39]} 25... Nxf4 {[%clk 0:01:00.4]} 26. exf4
{[%clk 0:01:38]} 26... Bf6 {[%clk 0:00:51.1]} 27. b4 {[%clk 0:01:35.9]} 27...
Bc3 {[%clk 0:00:48.4]} 28. Bc4 {[%clk 0:01:35.5]} 28... Bxb4 {[%clk 0:00:48.1]}
29. Bxa6 {[%clk 0:01:35.7]} 29... Ba3 {[%clk 0:00:47.4]} 30. Ke2 {[%clk
0:01:33.3]} 30... Kf8 {[%clk 0:00:46.6]} 31. Bc4 {[%clk 0:01:31.2]} 31... Ke7
{[%clk 0:00:46.1]} 32. Kd3 {[%clk 0:01:31.1]} 32... f6 {[%clk 0:00:44.1]} 33.
Bg8 {[%clk 0:01:28.6]} 33... h6 {[%clk 0:00:42.2]} 34. Kc4 {[%clk 0:01:26.7]}
34... g5 {[%clk 0:00:39.5]} 35. Bh7 {[%clk 0:01:26.2]} 35... Ke6 {[%clk
0:00:36.2]} 36. Bg8+ {[%clk 0:01:26.3]} 36... Kd6 {[%clk 0:00:35.6]} 37. Bd5
{[%clk 0:01:08.7]} 37... Bc5 {[%clk 0:00:21.5]} 38. f3 {[%clk 0:01:08]} 38...
Be3 {[%clk 0:00:21.1]} 39. fxg5 {[%clk 0:00:47]} 39... fxg5 {[%clk 0:00:22]} 40.
a4 {[%clk 0:00:42]} 40... Bf4 {[%clk 0:00:20.5]} 41. h3 {[%clk 0:00:40.8]} 41...
h5 {[%clk 0:00:20.6]} 42. h4 {[%clk 0:00:20]} 42... gxh4 {[%clk 0:00:17.4]} 43.
Bf7 {[%clk 0:00:19.6]} 43... Bg3 {[%clk 0:00:14.7]} 44. Kb5 {[%clk 0:00:12.7]}
44... Kc7 {[%clk 0:00:14.4]} 45. Bxh5 {[%clk 0:00:10.3]} 45... Kb8 {[%clk
0:00:13.8]} 46. Bg6 {[%clk 0:00:07.8]} 46... f4 {[%clk 0:00:12.9]} 47. Kb6
{[%clk 0:00:05.4]} 47... Bf2+ {[%clk 0:00:12.8]} 48. Kc6 {[%clk 0:00:05.4]}
48... Ka7 {[%clk 0:00:12.3]} 49. Bd3 {[%clk 0:00:04.4]} 49... Bg3 {[%clk
0:00:12.2]} 50. Kb5 {[%clk 0:00:04.6]} 50... Bf2 {[%clk 0:00:12]} 51. Bf5 {[%clk
0:00:05]} 51... Bg3 {[%clk 0:00:11.9]} 52. Bh3 {[%clk 0:00:05.9]} 52... Bf2
{[%clk 0:00:12]} 53. Bg4 {[%clk 0:00:06.8]} 53... Bg3 {[%clk 0:00:12.1]} 54. Bh3
{[%clk 0:00:07.7]} 54... Bf2 {[%clk 0:00:12.3]} 55. Bg4 {[%clk 0:00:08.6]} 55...
Bg3 {[%clk 0:00:12.6]} 56. Bh3 {[%clk 0:00:09.5]} 1/2-1/2

[Event "*** SCC Grand Prix: Titled Tuesday Blitz"]
[Site "Chess.com"]
[Date "2020.07.21"]
[Round "9"]
[White "Undisputed92"]
[Black "Maksat-94"]
[Result "1-0"]
[WhiteElo "2649"]
[BlackElo "2485"]
[TimeControl "180+1"]
[EndTime "11:49:32 PDT"]
[Termination "Undisputed92 won by resignation"]

1. e4 {[%clk 0:02:51.9]} 1... c5 {[%clk 0:02:33.2]} 2. Nf3 {[%clk 0:02:48.8]}
2... d6 {[%clk 0:02:31.6]} 3. Nc3 {[%clk 0:02:48.4]} 3... Nf6 {[%clk 0:02:29]}
4. e5 {[%clk 0:02:48.2]} 4... dxe5 {[%clk 0:02:26]} 5. Nxe5 {[%clk 0:02:49.1]}
5... Nbd7 {[%clk 0:02:25.8]} 6. d4 {[%clk 0:02:47.7]} 6... e6 {[%clk 0:02:20.2]}
7. Bb5 {[%clk 0:02:47]} 7... Be7 {[%clk 0:02:19.5]} 8. Be3 {[%clk 0:02:25.2]}
8... cxd4 {[%clk 0:02:13.1]} 9. Qxd4 {[%clk 0:02:24.2]} 9... O-O {[%clk
0:02:13.3]} 10. O-O-O {[%clk 0:02:22.2]} 10... Nxe5 {[%clk 0:02:12.4]} 11. Qxe5
{[%clk 0:02:21.3]} 11... Qa5 {[%clk 0:02:12.9]} 12. Bd4 {[%clk 0:02:08]} 12...
a6 {[%clk 0:02:05.6]} 13. Be2 {[%clk 0:02:05.4]} 13... Qxe5 {[%clk 0:01:38.9]}
14. Bxe5 {[%clk 0:02:06.3]} 14... b5 {[%clk 0:01:38.5]} 15. Bf3 {[%clk
0:02:03.3]} 15... Ra7 {[%clk 0:01:38.4]} 16. Ne4 {[%clk 0:01:44.2]} 16... Nxe4
{[%clk 0:01:17]} 17. Bxe4 {[%clk 0:01:45.1]} 17... Bc5 {[%clk 0:01:14.1]} 18.
Bd6 {[%clk 0:01:37.7]} 18... Bxd6 {[%clk 0:01:10.9]} 19. Rxd6 {[%clk 0:01:38.6]}
19... f6 {[%clk 0:01:10.7]} 20. Rhd1 {[%clk 0:01:37.2]} 20... Kf7 {[%clk
0:01:10.1]} 21. c3 {[%clk 0:01:18.1]} 21... h6 {[%clk 0:01:05.8]} 22. Rb6 {[%clk
0:01:14.3]} 22... Ke7 {[%clk 0:01:04.7]} 23. Rdd6 {[%clk 0:01:08.4]} 23... Rd8
{[%clk 0:01:03.4]} 24. Rxd8 {[%clk 0:01:05.1]} 24... Kxd8 {[%clk 0:01:02.1]} 25.
Rd6+ {[%clk 0:01:04.7]} 25... Ke7 {[%clk 0:00:52.6]} 26. Rd2 {[%clk 0:00:59.3]}
26... f5 {[%clk 0:00:46.2]} 27. Bc2 {[%clk 0:00:57.2]} 27... e5 {[%clk
0:00:45.9]} 28. a4 {[%clk 0:00:56.2]} 28... Bd7 {[%clk 0:00:37.6]} 29. Rd5
{[%clk 0:00:52.7]} 29... Ke6 {[%clk 0:00:36.7]} 30. Rc5 {[%clk 0:00:48.4]} 30...
bxa4 {[%clk 0:00:35.6]} 31. Ra5 {[%clk 0:00:47.5]} 31... g5 {[%clk 0:00:32.5]}
32. Bxa4 {[%clk 0:00:44.1]} 32... Bxa4 {[%clk 0:00:31.5]} 33. Rxa4 {[%clk
0:00:45]} 33... a5 {[%clk 0:00:29.6]} 34. b4 {[%clk 0:00:43.1]} 34... Rc7 {[%clk
0:00:28]} 35. bxa5 {[%clk 0:00:39.8]} 35... Rxc3+ {[%clk 0:00:27.7]} 36. Kd2
{[%clk 0:00:40.3]} 36... Rc7 {[%clk 0:00:27.3]} 37. a6 {[%clk 0:00:40]} 37...
Ra7 {[%clk 0:00:27.7]} 38. Ra5 {[%clk 0:00:38.6]} 38... e4 {[%clk 0:00:26]} 39.
Ke3 {[%clk 0:00:37.9]} 39... Kf6 {[%clk 0:00:25.7]} 40. h3 {[%clk 0:00:33.5]}
40... h5 {[%clk 0:00:23.1]} 41. g3 {[%clk 0:00:24.4]} 41... h4 {[%clk
0:00:21.5]} 42. gxh4 {[%clk 0:00:24.2]} 42... gxh4 {[%clk 0:00:18.5]} 43. Kf4
{[%clk 0:00:24.3]} 43... Ke6 {[%clk 0:00:18.9]} 44. Ra1 {[%clk 0:00:22.3]} 44...
Kf6 {[%clk 0:00:17.5]} 45. Ra3 {[%clk 0:00:22.2]} 45... Ke6 {[%clk 0:00:17.2]}
46. Ra5 {[%clk 0:00:22.2]} 46... Kd6 {[%clk 0:00:11.2]} 47. Kxf5 {[%clk
0:00:21.5]} 47... Kc6 {[%clk 0:00:11.1]} 48. Kxe4 {[%clk 0:00:21.5]} 48... Kb6
{[%clk 0:00:11.5]} 49. Ra4 {[%clk 0:00:20.4]} 49... Re7+ {[%clk 0:00:10.1]} 50.
Kf5 {[%clk 0:00:20.5]} 50... Ka7 {[%clk 0:00:10.4]} 51. f4 {[%clk 0:00:20.2]}
51... Re3 {[%clk 0:00:09.3]} 52. Kg4 {[%clk 0:00:20.3]} 52... Rg3+ {[%clk
0:00:09.1]} 53. Kxh4 {[%clk 0:00:20.5]} 1-0

[Event "*** SCC Grand Prix: Titled Tuesday Blitz"]
[Site "Chess.com"]
[Date "2020.07.21"]
[Round "9"]
[White "MIJUAREZ"]
[Black "ural58"]
[Result "0-1"]
[WhiteElo "2389"]
[BlackElo "2526"]
[TimeControl "180+1"]
[EndTime "11:49:32 PDT"]
[Termination "ural58 won on time"]

1. e4 {[%clk 0:03:00.9]} 1... d5 {[%clk 0:02:59.4]} 2. exd5 {[%clk 0:02:58.9]}
2... Qxd5 {[%clk 0:02:59.5]} 3. Nc3 {[%clk 0:02:58.8]} 3... Qa5 {[%clk
0:02:59.3]} 4. d4 {[%clk 0:02:56.9]} 4... Nf6 {[%clk 0:02:59.5]} 5. Nf3 {[%clk
0:02:56.4]} 5... Nc6 {[%clk 0:02:59.4]} 6. Bb5 {[%clk 0:02:53.9]} 6... Ne4
{[%clk 0:02:58.9]} 7. Bd2 {[%clk 0:02:32.2]} 7... Nxc3 {[%clk 0:02:55.8]} 8.
Bxc6+ {[%clk 0:02:31.1]} 8... bxc6 {[%clk 0:02:56.7]} 9. Bxc3 {[%clk 0:02:31.1]}
9... Qd5 {[%clk 0:02:57.1]} 10. O-O {[%clk 0:02:30.8]} 10... Bg4 {[%clk
0:02:56]} 11. Re1 {[%clk 0:02:27.3]} 11... Bxf3 {[%clk 0:02:46.7]} 12. Qxf3
{[%clk 0:02:25.3]} 12... Qxf3 {[%clk 0:02:46.7]} 13. gxf3 {[%clk 0:02:26.2]}
13... e6 {[%clk 0:02:47.2]} 14. f4 {[%clk 0:02:24]} 14... Kd7 {[%clk 0:02:47.1]}
15. Rad1 {[%clk 0:02:19.6]} 15... Bd6 {[%clk 0:02:46.3]} 16. f5 {[%clk
0:02:18.2]} 16... exf5 {[%clk 0:02:45.7]} 17. d5 {[%clk 0:02:18.7]} 17... c5
{[%clk 0:02:44.4]} 18. Kh1 {[%clk 0:02:07.6]} 18... Rhg8 {[%clk 0:02:40.9]} 19.
Re3 {[%clk 0:02:02.3]} 19... g6 {[%clk 0:02:38]} 20. h3 {[%clk 0:01:30.4]} 20...
Rge8 {[%clk 0:02:31.5]} 21. Rde1 {[%clk 0:01:26]} 21... Rxe3 {[%clk 0:02:29.9]}
22. Rxe3 {[%clk 0:01:26.7]} 22... Bf4 {[%clk 0:02:17.2]} 23. Rf3 {[%clk
0:01:16.6]} 23... Bh6 {[%clk 0:02:07.3]} 24. Be5 {[%clk 0:01:08.3]} 24... Re8
{[%clk 0:02:02.5]} 25. Bh2 {[%clk 0:01:06.1]} 25... Re1+ {[%clk 0:02:00.9]} 26.
Kg2 {[%clk 0:01:04.8]} 26... Re2 {[%clk 0:01:30]} 27. Rc3 {[%clk 0:01:01.9]}
27... Bf8 {[%clk 0:01:26.5]} 28. Bf4 {[%clk 0:00:34.4]} 28... Re4 {[%clk
0:01:09.4]} 29. Be3 {[%clk 0:00:31.4]} 29... Bg7 {[%clk 0:00:54.7]} 30. Rxc5
{[%clk 0:00:29.6]} 30... Bxb2 {[%clk 0:00:54.3]} 31. Ra5 {[%clk 0:00:29.3]}
31... Rc4 {[%clk 0:00:50.3]} 32. Rxa7 {[%clk 0:00:26.5]} 32... Rxc2 {[%clk
0:00:50.3]} 33. a4 {[%clk 0:00:25.7]} 33... Be5 {[%clk 0:00:47.8]} 34. Kf3
{[%clk 0:00:22.3]} 34... Rc3 {[%clk 0:00:46]} 35. Ke2 {[%clk 0:00:20.5]} 35...
Ra3 {[%clk 0:00:45]} 36. a5 {[%clk 0:00:19.7]} 36... Bd6 {[%clk 0:00:39.4]} 37.
a6 {[%clk 0:00:18.9]} 37... f4 {[%clk 0:00:32.6]} 38. Bd4 {[%clk 0:00:18]} 38...
Ra4 {[%clk 0:00:28.4]} 39. Kd3 {[%clk 0:00:17]} 39... Ra3+ {[%clk 0:00:19.3]}
40. Kc4 {[%clk 0:00:16.5]} 40... Ra4+ {[%clk 0:00:16.9]} 41. Kc3 {[%clk
0:00:16.5]} 41... Ra2 {[%clk 0:00:12.9]} 42. Ra8 {[%clk 0:00:15.2]} 42... c5
{[%clk 0:00:10.5]} 43. dxc6+ {[%clk 0:00:13.4]} 43... Kxc6 {[%clk 0:00:11.4]}
44. a7 {[%clk 0:00:11.6]} 44... Kd5 {[%clk 0:00:11.2]} 45. Rd8 {[%clk
0:00:09.2]} 45... Ra3+ {[%clk 0:00:10.9]} 46. Kb2 {[%clk 0:00:08.5]} 46... Ra6
{[%clk 0:00:09.2]} 47. Kc3 {[%clk 0:00:05.1]} 47... Ra3+ {[%clk 0:00:08.4]} 48.
Kb2 {[%clk 0:00:05]} 48... Ra6 {[%clk 0:00:08.5]} 49. a8=Q+ {[%clk 0:00:04.5]}
49... Rxa8 {[%clk 0:00:08.5]} 50. Rxa8 {[%clk 0:00:05.2]} 50... Kxd4 {[%clk
0:00:09.2]} 51. Rh8 {[%clk 0:00:02.6]} 51... h5 {[%clk 0:00:08.6]} 52. Rh7
{[%clk 0:00:03.2]} 52... f5 {[%clk 0:00:08.4]} 53. Rg7 {[%clk 0:00:03]} 53...
Ke4 {[%clk 0:00:07.9]} 54. Rxg6 {[%clk 0:00:03.6]} 54... Be5+ {[%clk 0:00:08.4]}
55. Kc2 {[%clk 0:00:03.6]} 55... Kf3 {[%clk 0:00:09.3]} 56. Rg5 {[%clk
0:00:03.6]} 56... Bd4 {[%clk 0:00:07.4]} 57. Rxf5 {[%clk 0:00:03.7]} 57... h4
{[%clk 0:00:07.9]} 58. Rh5 {[%clk 0:00:04]} 58... Bxf2 {[%clk 0:00:08.8]} 59.
Rg5 {[%clk 0:00:01.8]} 59... Bg3 {[%clk 0:00:09.7]} 0-1

[Event "*** SCC Grand Prix: Titled Tuesday Blitz"]
[Site "Chess.com"]
[Date "2020.07.21"]
[Round "9"]
[White "QueenOfTactics90"]
[Black "PattyCastillo"]
[Result "0-1"]
[WhiteElo "1967"]
[BlackElo "1942"]
[TimeControl "180+1"]
[EndTime "11:49:34 PDT"]
[Termination "PattyCastillo won by checkmate"]

1. e4 {[%clk 0:03:00.9]} 1... c5 {[%clk 0:02:57.9]} 2. Nf3 {[%clk 0:03:00.8]}
2... d6 {[%clk 0:02:57.7]} 3. d4 {[%clk 0:03:01]} 3... cxd4 {[%clk 0:02:58.6]}
4. Nxd4 {[%clk 0:03:01.3]} 4... Nf6 {[%clk 0:02:59.3]} 5. f3 {[%clk 0:03:01.3]}
5... a6 {[%clk 0:02:57.3]} 6. c4 {[%clk 0:03:01.1]} 6... e5 {[%clk 0:02:55.5]}
7. Nb3 {[%clk 0:02:57.5]} 7... Be7 {[%clk 0:02:55.9]} 8. Nc3 {[%clk 0:02:57.2]}
8... Be6 {[%clk 0:02:56.1]} 9. Be3 {[%clk 0:02:56.7]} 9... Nc6 {[%clk
0:02:53.9]} 10. Be2 {[%clk 0:02:52.6]} 10... Rc8 {[%clk 0:02:51.9]} 11. Rc1
{[%clk 0:02:51.9]} 11... O-O {[%clk 0:02:47.4]} 12. O-O {[%clk 0:02:51.5]} 12...
Nd7 {[%clk 0:02:35.8]} 13. g4 {[%clk 0:02:43.1]} 13... g6 {[%clk 0:02:34.8]} 14.
Qd2 {[%clk 0:02:40.6]} 14... f5 {[%clk 0:02:33.7]} 15. exf5 {[%clk 0:02:32]}
15... gxf5 {[%clk 0:02:34.6]} 16. gxf5 {[%clk 0:02:30.4]} 16... Rxf5 {[%clk
0:02:32.3]} 17. Kh1 {[%clk 0:02:27.3]} 17... Kh8 {[%clk 0:02:31.7]} 18. Ne4
{[%clk 0:02:22]} 18... Nd4 {[%clk 0:02:28.6]} 19. Bxd4 {[%clk 0:02:17]} 19...
exd4 {[%clk 0:02:29.5]} 20. Qxd4+ {[%clk 0:02:16.8]} 20... Bf6 {[%clk
0:02:24.1]} 21. Qxd6 {[%clk 0:02:08.8]} 21... Qe8 {[%clk 0:02:12.3]} 22. Nxf6
{[%clk 0:02:02]} 22... Rxf6 {[%clk 0:02:09.1]} 23. Qd4 {[%clk 0:01:54.3]} 23...
Qf7 {[%clk 0:01:57.9]} 24. f4 {[%clk 0:01:45.3]} 24... Rg8 {[%clk 0:01:52.7]}
25. Rg1 {[%clk 0:01:43.4]} 25... Bf5 {[%clk 0:01:17.2]} 26. Rxg8+ {[%clk
0:01:42.7]} 26... Kxg8 {[%clk 0:01:14.6]} 27. Rd1 {[%clk 0:01:35.9]} 27... Qe6
{[%clk 0:00:56.3]} 28. Bf3 {[%clk 0:01:34.6]} 28... Kf8 {[%clk 0:00:50.2]} 29.
Nc5 {[%clk 0:01:25.7]} 29... Nxc5 {[%clk 0:00:48.4]} 30. Qxc5+ {[%clk 0:01:26]}
30... Kg7 {[%clk 0:00:47.6]} 31. Rg1+ {[%clk 0:01:24]} 31... Kh6 {[%clk
0:00:46.7]} 32. Qf2 {[%clk 0:01:18]} 32... Rg6 {[%clk 0:00:43.2]} 33. Bd5 {[%clk
0:01:13.4]} 33... Be4+ {[%clk 0:00:41.5]} 34. Bxe4 {[%clk 0:01:07.8]} 34...
Qxe4+ {[%clk 0:00:42.4]} 35. Rg2 {[%clk 0:01:07.8]} 35... Qb1+ {[%clk
0:00:41.5]} 36. Qg1 {[%clk 0:01:05.8]} 36... Qe4 {[%clk 0:00:40.4]} 37. b3
{[%clk 0:00:58.8]} 37... Qxf4 {[%clk 0:00:37.1]} 38. Rxg6+ {[%clk 0:00:57.8]}
38... hxg6 {[%clk 0:00:38]} 39. Kg2 {[%clk 0:00:52]} 39... Qd2+ {[%clk 0:00:36]}
40. Qf2 {[%clk 0:00:51.7]} 40... Qg5+ {[%clk 0:00:36.2]} 41. Kh3 {[%clk
0:00:48.2]} 41... Qe5 {[%clk 0:00:33]} 42. Qh4+ {[%clk 0:00:46.5]} 42... Kg7
{[%clk 0:00:32.6]} 43. Qg4 {[%clk 0:00:43]} 43... Qe3+ {[%clk 0:00:31.9]} 44.
Kh4 {[%clk 0:00:41.6]} 44... Qf2+ {[%clk 0:00:30.3]} 45. Qg3 {[%clk 0:00:40.4]}
45... Qf5 {[%clk 0:00:29.7]} 46. Qc7+ {[%clk 0:00:38.9]} 46... Kh6 {[%clk
0:00:29.5]} 47. Qxb7 {[%clk 0:00:36.2]} 47... g5+ {[%clk 0:00:27.8]} 48. Kg3
{[%clk 0:00:34.8]} 48... Qf4+ {[%clk 0:00:26.9]} 49. Kg2 {[%clk 0:00:34.9]}
49... Qd2+ {[%clk 0:00:26.7]} 50. Kh3 {[%clk 0:00:29.7]} 50... Qe3+ {[%clk
0:00:26.2]} 51. Kg4 {[%clk 0:00:27.6]} 51... Qf4+ {[%clk 0:00:24.4]} 52. Kh3
{[%clk 0:00:27.4]} 52... Qe3+ {[%clk 0:00:24.5]} 53. Kg2 {[%clk 0:00:27.4]}
53... Qe2+ {[%clk 0:00:23.9]} 54. Kg1 {[%clk 0:00:26.6]} 54... Qe1+ {[%clk
0:00:21.6]} 55. Kg2 {[%clk 0:00:27]} 55... Qe2+ {[%clk 0:00:22]} 56. Kg3 {[%clk
0:00:22.1]} 56... Qe1+ {[%clk 0:00:19.7]} 57. Kg4 {[%clk 0:00:20.3]} 57... Qg1+
{[%clk 0:00:17.7]} 58. Kh3 {[%clk 0:00:20.4]} 58... Qf1+ {[%clk 0:00:17.7]} 59.
Qg2 {[%clk 0:00:19.8]} 59... Qf5+ {[%clk 0:00:18.3]} 60. Qg4 {[%clk 0:00:18.7]}
60... Qf1+ {[%clk 0:00:18.8]} 61. Kg3 {[%clk 0:00:18.2]} 61... Qg1+ {[%clk
0:00:18.8]} 62. Kf3 {[%clk 0:00:18]} 62... Qd1+ {[%clk 0:00:19.2]} 63. Kg3
{[%clk 0:00:17.8]} 63... Qg1+ {[%clk 0:00:19.4]} 64. Kh3 {[%clk 0:00:17.6]}
64... Qf1+ {[%clk 0:00:19]} 65. Qg2 {[%clk 0:00:17.5]} 65... Qf5+ {[%clk
0:00:18.7]} 66. Kg3 {[%clk 0:00:16.7]} 66... Qf4+ {[%clk 0:00:18.8]} 67. Kh3
{[%clk 0:00:16.6]} 67... Qh4# {[%clk 0:00:19.2]} 0-1